fUST/lending_fUST_20250306
["ID","MTS","AMOUNT","RATE_DAILY","PERIOD"]
[355555578,1741271054589,-500.0,0.00042191,120]
[355555579,1741271054625,-860.38,0.00042191,120]
[355555580,1741271054660,-638.36,0.00042191,120]
[355555581,1741271054694,-7547.79,0.00042191,120]
[355555582,1741271054730,-6952.99,0.00042191,120]
[355555583,1741271054765,-8928.86,0.00042191,120]
[355555584,1741271054799,-500.0,0.00042191,120]
[355555585,1741271054837,-11217.98,0.00042191,120]
[355555586,1741271054872,-12650.34,0.00042191,120]
[355555587,1741271054910,-671.11,0.00042191,120]
[355555588,1741271054946,-1347.04,0.00042191,120]
[355555589,1741271054984,-743.57,0.00042191,120]
[355555590,1741271055023,-453.84058359,0.00042191,120]
[355555591,1741271055061,-14660.74,0.00042191,120]
[355555592,1741271055096,-743.24,0.00042191,120]
[355555593,1741271055132,-1243.9,0.00042191,120]
[355555594,1741271055168,-1229.39,0.00042191,120]
[355555595,1741271055204,-930.18,0.00042191,120]
[355555596,1741271055241,-500.0,0.00042191,120]
[355555597,1741271055279,-4141.21,0.00042191,120]
[355555598,1741271055317,-4912.79,0.00042191,120]
[355555599,1741271055355,-1927.41,0.00042191,120]
[355555600,1741271055391,-1019.55,0.00042191,120]
[355555601,1741271055426,-562.37,0.00042191,120]
[355555602,1741271055465,-588.98,0.00042191,120]
[355555603,1741271055501,-1728.34,0.00042191,120]
[355555604,1741271055539,-989.07,0.00042191,120]
[355555605,1741271055575,-773.49,0.00042191,120]
[355555606,1741271055614,-780.02,0.00042191,120]
[355555607,1741271055654,-1721.71,0.00042191,120]
[355555608,1741271055691,-1621.8,0.00042191,120]
[355555609,1741271055730,-3792.33,0.00042191,120]
[355555610,1741271055765,-1769.32,0.00042191,120]
[355555611,1741271055801,-500.0,0.00042191,120]
[355555612,1741271055842,-539.76,0.00042191,120]
[355555613,1741271055886,-6300.9,0.00042191,120]
[355555614,1741271055930,-1291.62,0.00042191,120]
[355555615,1741271055971,-629.53,0.00042191,120]
[355555616,1741271056013,-1376.17,0.00042191,120]
[355555617,1741271056055,-500.0,0.00042191,120]
[355555618,1741271056096,-2291.69,0.00042191,120]
[355555619,1741271056136,-500.0,0.00042191,30]
[355555620,1741271056176,-13081.35,0.00042191,120]
[355555621,1741271056217,-956.01,0.00042191,120]
[355555622,1741271056257,-1308.06,0.00042191,120]
[355555623,1741271056298,-673.65,0.00042191,120]
[355555624,1741271056339,-1988.24,0.00042191,120]
[355555625,1741271056381,-7915.38,0.00042191,120]
[355555626,1741271056419,-4641.08,0.00042191,120]
[355555627,1741271056458,-500.0,0.00042191,120]
[355555628,1741271056500,-1415.17,0.00042191,120]
[355555629,1741271056541,-520.03,0.00042191,120]
[355555630,1741271056584,-500.0,0.00042191,120]
[355555631,1741271056625,-534.2,0.00042191,120]
[355555632,1741271056667,-676.27,0.00042191,120]
[355555633,1741271056707,-500.0,0.00042191,120]
[355555634,1741271056746,-2241.31,0.00042191,120]
[355555635,1741271056786,-3026.45,0.00042191,120]
[355555636,1741271056824,-965.35,0.00042191,120]
[355555637,1741271056863,-2375.11,0.00042191,120]
[355555638,1741271056902,-500.0,0.00042191,120]
[355555639,1741271056943,-2052.47,0.00042191,120]
[355555640,1741271056979,-610.1,0.00042191,120]
[355555641,1741271057018,-2164.86,0.00042191,120]
[355555642,1741271057057,-3883.6,0.00042191,120]
[355555643,1741271057094,-971.78,0.00042191,120]
[355555644,1741271057130,-544.43,0.00042191,120]
[355555645,1741271057167,-1730.51,0.00042191,120]
[355555646,1741271057204,-6002.47,0.00042191,120]
[355555647,1741271057241,-3005.74,0.00042191,120]
[355555648,1741271057278,-565.16,0.00042191,120]
[355555649,1741271057317,-1270.54,0.00042191,120]
[355555650,1741271057354,-4089.33,0.00042191,120]
[355555651,1741271057394,-1167.51,0.00042191,120]
[355555652,1741271057433,-16645.64,0.00042191,120]
[355555653,1741271057472,-2489.8,0.00042191,120]
[355555654,1741271057512,-4966.92,0.00042191,120]
[355555655,1741271057557,-1075.99,0.00042191,120]
[355555656,1741271057598,-2879.45,0.00042191,120]
[355555657,1741271057784,-500.0,0.00042191,120]
[355555658,1741271057823,-1911.45,0.00042191,120]
[355555659,1741271057859,-500.0,0.00042191,120]
[355555660,1741271057895,-1700.74,0.00042191,120]
[355555661,1741271057931,-2577.76,0.00042191,120]
[355555662,1741271057968,-1125.31,0.00042191,120]
[355555663,1741271058005,-633.05,0.000424,30]
[355555664,1741271058045,-561.03,0.00042465,120]
[355555665,1741271058084,-687.89,0.00042465,120]
[355555666,1741271058124,-1099.59,0.00042465,120]
[355555667,1741271058163,-752.11,0.00042465,120]
[355555668,1741271058201,-1468.62,0.00042465,120]
[355555669,1741271058242,-756.76,0.00042465,120]
[355555670,1741271058283,-628.78116992,0.00042465,120]
[355555671,1741271058324,-1110.36,0.00042465,120]
[355555672,1741271058364,-891.47,0.00042465,120]
[355555673,1741271058404,-884.06,0.00042465,120]
[355555674,1741271058445,-500.0,0.00042465,120]
[355555675,1741271058490,-1074.64,0.00042465,120]
[355555676,1741271058531,-500.0,0.00042465,120]
[355555677,1741271058574,-950.1,0.00042465,120]
[355555678,1741271058616,-398.79628414,0.00042465,120]
[355555679,1741271058657,-500.0,0.00042465,120]
[355555680,1741271058696,-1225.2,0.00042465,120]
[355555681,1741271058736,-2162.05,0.00042465,120]
[355555682,1741271058776,-1648.67,0.00042465,120]
[355555683,1741271058816,-500.0,0.00042465,120]
[355555684,1741271058857,-610.21,0.00042465,120]
[355555685,1741271058898,-1829.08,0.00042465,120]
[355555686,1741271058938,-1064.07,0.00042465,120]
[355555687,1741271058980,-2114.99,0.00042465,120]
[355555688,1741271059027,-911.44,0.00042465,120]
[355555689,1741271059076,-531.27,0.00042465,120]
[355555690,1741271059122,-252.92755296,0.00042465,120]
[355555691,1741271059170,-636.67,0.00042465,120]
[355555692,1741271059218,-500.0,0.00042465,120]
[355555693,1741271059259,-584.29,0.00042465,120]
[355555694,1741271059301,-500.0,0.00042465,120]
[355555695,1741271059344,-323.43103553,0.00042465,120]
[355555696,1741271059383,-647.06,0.00042465,120]
[355555697,1741271059421,-938.8,0.00042465,120]
[355555698,1741271059459,-636.14,0.00042465,120]
[355555699,1741271059498,-988.71,0.00042465,120]
[355555700,1741271059536,-962.89,0.00042465,120]
[355555701,1741271059574,-1193.91,0.00042465,120]
[355555702,1741271059613,-1080.04,0.00042465,120]
[355555703,1741271059651,-500.0,0.00042465,120]
[355555704,1741271059687,-548.17,0.00042465,120]
[355555705,1741271059726,-1071.92,0.00042465,120]
[355555706,1741271059763,-515.91,0.00042465,120]
[355555707,1741271059800,-500.0,0.00042465,120]
[355555708,1741271059836,-1187.86,0.00042465,120]
[355555709,1741271059874,-1547.49,0.00042465,120]
[355555710,1741271059912,-752.94,0.00042465,120]
[355555711,1741271059952,-1999.21,0.00042465,120]
[355555712,1741271059991,-508.31,0.00042465,120]
[355555713,1741271060030,-968.14,0.00042465,120]
[355555714,1741271060066,-500.0,0.00042465,120]
[355555715,1741271060105,-648.77,0.00042465,120]
[355555716,1741271060141,-954.53,0.00042465,120]
[355555717,1741271060177,-500.0,0.00042465,120]
[355555718,1741271060214,-676.1,0.00042465,120]
[355555719,1741271060251,-1140.67,0.00042465,120]
[355555720,1741271060293,-1000.0,0.00042465,30]
[355555721,1741271060335,-626.05796986,0.00042465,120]
[355555722,1741271060375,-1042.73,0.00042465,120]
[355555723,1741271060412,-281.84002638,0.00042465,120]
[355555724,1741271060447,-500.0,0.00042465,120]
[355555725,1741271060488,-612.71,0.00042465,120]
[355555726,1741271060524,-760.52,0.00042465,120]
[355555727,1741271060571,-742.11,0.00042465,120]
[355555728,1741271060610,-500.0,0.00042465,120]
[355555729,1741271060650,-1001.19,0.00042465,120]
[355555730,1741271060688,-4531.68,0.00042465,120]
[355555731,1741271060725,-741.51,0.00042465,120]
[355555732,1741271060763,-500.0,0.00042465,120]
[355555733,1741271060802,-967.99,0.00042465,120]
[355555734,1741271060840,-1974.75,0.00042465,120]
[355555735,1741271060876,-1553.24,0.00042465,120]
[355555736,1741271060916,-724.76,0.00042465,120]
[355555737,1741271060953,-500.0,0.00042465,120]
[355555738,1741271060992,-1006.48,0.00042465,120]
[355555739,1741271061030,-500.0,0.00042465,120]
[355555740,1741271061069,-500.0,0.00042465,120]
[355555741,1741271061106,-1042.97,0.00042465,120]
[355555742,1741271061144,-500.0,0.00042465,120]
[355555743,1741271061183,-795.85,0.00042465,120]
[355555744,1741271061223,-767.53,0.00042465,120]
[355555745,1741271061261,-1222.66,0.00042465,120]
[355555746,1741271061302,-11492.84,0.00042465,30]
[355555747,1741271061341,-500.0,0.00042465,120]
[355555748,1741271061379,-500.0,0.00042465,120]
[355555749,1741271061417,-500.0,0.00042465,120]
[355555750,1741271061455,-804.73,0.00042465,120]
[355555751,1741271061495,-891.44,0.00042465,120]
[355555752,1741271061537,-500.0,0.00042465,120]
[355555753,1741271061577,-860.38,0.00042465,120]
[355555754,1741271061616,-638.36,0.00042465,120]
[355555755,1741271061656,-7547.79,0.00042465,120]
[355555756,1741271061697,-6952.99,0.00042465,120]
[355555757,1741271061737,-8928.86,0.00042465,120]
[355555758,1741271061777,-500.0,0.00042465,120]
[355555759,1741271061817,-11217.98,0.00042465,120]
[355555760,1741271061858,-12650.34,0.00042465,120]
[355555761,1741271062044,-671.11,0.00042465,120]
[355555762,1741271062083,-1347.04,0.00042465,120]
[355555763,1741271062119,-743.57,0.00042465,120]
[355555764,1741271062157,-14660.74,0.00042465,120]
[355555765,1741271062193,-743.24,0.00042465,120]
[355555766,1741271062229,-1243.9,0.00042465,120]
[355555767,1741271062267,-1229.39,0.00042465,120]
[355555768,1741271062305,-930.18,0.00042465,120]
[355555769,1741271062340,-353.18479585,0.00042465,120]
[355555770,1741271062376,-4141.21,0.00042465,120]
[355555771,1741271062412,-4912.79,0.00042465,120]
[355555772,1741271062448,-1927.41,0.00042465,120]
[355555773,1741271062484,-1019.55,0.00042465,120]
[355555774,1741271062521,-562.37,0.00042465,120]
[355555775,1741271062559,-588.98,0.00042465,120]
[355555776,1741271062597,-1728.34,0.00042465,120]
[355555777,1741271062636,-989.07,0.00042465,120]
[355555778,1741271062672,-773.49,0.00042465,120]
[355555779,1741271062710,-780.02,0.00042465,120]
[355555780,1741271062746,-1721.71,0.00042465,120]
[355555781,1741271062781,-1621.8,0.00042465,120]
[355555782,1741271062818,-3792.33,0.00042465,120]
[355555783,1741271062854,-1769.32,0.00042465,120]
[355555784,1741271062889,-500.0,0.00042465,120]
[355555785,1741271062925,-539.76,0.00042465,120]
[355555786,1741271062961,-6300.9,0.00042465,120]
[355555787,1741271062998,-1291.62,0.00042465,120]
[355555788,1741271063037,-629.53,0.00042465,120]
[355555789,1741271063073,-1376.17,0.00042465,120]
[355555790,1741271063110,-500.0,0.00042465,120]
[355555791,1741271063146,-2291.69,0.00042465,120]
[355555792,1741271063183,-500.0,0.00042465,30]
[355555793,1741271063220,-13081.35,0.00042465,120]
[355555794,1741271063259,-956.01,0.00042465,120]
[355555795,1741271063295,-1308.06,0.00042465,120]
[355555796,1741271063333,-673.65,0.00042465,120]
[355555797,1741271063371,-1988.24,0.00042465,120]
[355555798,1741271063407,-7915.38,0.00042465,120]
[355555799,1741271063445,-4641.08,0.00042465,120]
[355555800,1741271063480,-500.0,0.00042465,120]
[355555801,1741271063518,-1415.17,0.00042465,120]
[355555802,1741271063560,-520.03,0.00042465,120]
[355555803,1741271063599,-207.97403417,0.00042465,120]
[355555804,1741271063636,-534.2,0.00042465,120]
[355555805,1741271063675,-676.27,0.00042465,120]
[355555806,1741271063713,-500.0,0.00042465,120]
[355555807,1741271063762,-2241.31,0.00042465,120]
[355555808,1741271063807,-3026.45,0.00042465,120]
[355555809,1741271063848,-965.35,0.00042465,120]
[355555810,1741271063890,-2375.11,0.00042465,120]
[355555811,1741271063933,-500.0,0.00042465,120]
[355555812,1741271063976,-2052.47,0.00042465,120]
[355555813,1741271064019,-610.1,0.00042465,120]
[355555814,1741271064061,-2164.86,0.00042465,120]
[355555815,1741271064103,-3883.6,0.00042465,120]
[355555816,1741271064144,-971.78,0.00042465,120]
[355555817,1741271064186,-544.43,0.00042465,120]
[355555818,1741271064226,-1730.51,0.00042465,120]
[355555819,1741271064267,-6002.47,0.00042465,120]
[355555820,1741271064304,-3005.74,0.00042465,120]
[355555821,1741271064341,-565.16,0.00042465,120]
[355555822,1741271064379,-1270.54,0.00042465,120]
[355555823,1741271064419,-4089.33,0.00042465,120]
[355555824,1741271064459,-1167.51,0.00042465,120]
[355555825,1741271064502,-16645.64,0.00042465,120]
[355555826,1741271064542,-2489.8,0.00042465,120]
[355555827,1741271064582,-4966.92,0.00042465,120]
[355555828,1741271064624,-1075.99,0.00042465,120]
[355555829,1741271064670,-2879.45,0.00042465,120]
[355555830,1741271064717,-500.0,0.00042465,120]
[355555831,1741271064764,-1911.45,0.00042465,120]
[355555832,1741271064809,-500.0,0.00042465,120]
[355555833,1741271064853,-1700.74,0.00042465,120]
[355555834,1741271064890,-2577.76,0.00042465,120]
[355555835,1741271064930,-1125.31,0.00042465,120]
[355555836,1741271064968,-500.0,0.00042672,30]
[355555837,1741271065005,-561.03,0.00042739,120]
[355555838,1741271065043,-687.89,0.00042739,120]
[355555839,1741271065080,-1099.59,0.00042739,120]
[355555840,1741271065115,-752.11,0.00042739,120]
[355555841,1741271065150,-1468.62,0.00042739,120]
[355555842,1741271065184,-756.76,0.00042739,120]
[355555843,1741271065223,-1110.36,0.00042739,120]
[355555844,1741271065259,-891.47,0.00042739,120]
[355555845,1741271065296,-884.06,0.00042739,120]
[355555846,1741271065338,-500.0,0.00042739,120]
[355555847,1741271065378,-1074.64,0.00042739,120]
[355555848,1741271065416,-500.0,0.00042739,120]
[355555849,1741271065456,-950.1,0.00042739,120]
[355555850,1741271065495,-500.0,0.00042739,120]
[355555851,1741271065536,-1225.2,0.00042739,120]
[355555852,1741271065575,-2162.05,0.00042739,120]
[355555853,1741271065613,-1648.67,0.00042739,120]
[355555854,1741271065649,-500.0,0.00042739,120]
[355555855,1741271065686,-610.21,0.00042739,120]
[355555856,1741271065723,-1829.08,0.00042739,120]
[355555857,1741271065759,-1064.07,0.00042739,120]
[355555858,1741271065795,-2114.99,0.00042739,120]
[355555859,1741271065832,-911.44,0.00042739,120]
[355555860,1741271065871,-531.27,0.00042739,120]
[355555861,1741271065914,-636.67,0.00042739,120]
[355555862,1741271065950,-500.0,0.00042739,120]
[355555863,1741271065986,-584.29,0.00042739,120]
[355555864,1741271066023,-500.0,0.00042739,120]
[355555865,1741271066230,-647.06,0.00042739,120]
[355555866,1741271066275,-938.8,0.00042739,120]
[355555867,1741271066319,-636.14,0.00042739,120]
[355555868,1741271066359,-988.71,0.00042739,120]
[355555869,1741271066397,-962.89,0.00042739,120]
[355555870,1741271066437,-1193.91,0.00042739,120]
[355555871,1741271066480,-1080.04,0.00042739,120]
[355555872,1741271066528,-500.0,0.00042739,120]
[355555873,1741271066569,-548.17,0.00042739,120]
[355555874,1741271066609,-1071.92,0.00042739,120]
[355555875,1741271066650,-515.91,0.00042739,120]
[355555876,1741271066688,-500.0,0.00042739,120]
[355555877,1741271066727,-1187.86,0.00042739,120]
[355555878,1741271066767,-1547.49,0.00042739,120]
[355555879,1741271066804,-752.94,0.00042739,120]
[355555880,1741271066843,-1999.21,0.00042739,120]
[355555881,1741271066882,-508.31,0.00042739,120]
[355555882,1741271066920,-968.14,0.00042739,120]
[355555883,1741271066958,-500.0,0.00042739,120]
[355555884,1741271066997,-648.77,0.00042739,120]
[355555885,1741271067035,-954.53,0.00042739,120]
[355555886,1741271067072,-500.0,0.00042739,120]
[355555887,1741271067110,-676.1,0.00042739,120]
[355555888,1741271067147,-1140.67,0.00042739,120]
[355555889,1741271067184,-1000.0,0.00042739,30]
[355555890,1741271067221,-1042.73,0.00042739,120]
[355555891,1741271067258,-500.0,0.00042739,120]
[355555892,1741271067295,-612.71,0.00042739,120]
[355555893,1741271067331,-760.52,0.00042739,120]
[355555894,1741271067377,-742.11,0.00042739,120]
[355555895,1741271067422,-500.0,0.00042739,120]
[355555896,1741271067467,-1001.19,0.00042739,120]
[355555897,1741271067506,-4531.68,0.00042739,120]
[355555898,1741271067545,-741.51,0.00042739,120]
[355555899,1741271067582,-500.0,0.00042739,120]
[355555900,1741271067619,-967.99,0.00042739,120]
[355555901,1741271067656,-1974.75,0.00042739,120]
[355555902,1741271067692,-1553.24,0.00042739,120]
[355555903,1741271067729,-724.76,0.00042739,120]
[355555904,1741271067765,-500.0,0.00042739,120]
[355555905,1741271067802,-1006.48,0.00042739,120]
[355555906,1741271067837,-500.0,0.00042739,120]
[355555907,1741271067873,-500.0,0.00042739,120]
[355555908,1741271067910,-1042.97,0.00042739,120]
[355555909,1741271067946,-500.0,0.00042739,120]
[355555910,1741271067986,-795.85,0.00042739,120]
[355555911,1741271068024,-767.53,0.00042739,120]
[355555912,1741271068069,-1222.66,0.00042739,120]
[355555913,1741271068111,-11492.84,0.00042739,30]
[355555914,1741271068151,-500.0,0.00042739,120]
[355555915,1741271068194,-500.0,0.00042739,120]
[355555916,1741271068235,-500.0,0.00042739,120]
[355555917,1741271068276,-804.73,0.00042739,120]
[355555918,1741271068315,-891.44,0.00042739,120]
[355555919,1741271068356,-500.0,0.00042739,120]
[355555920,1741271068397,-860.38,0.00042739,120]
[355555921,1741271068435,-638.36,0.00042739,120]
[355555922,1741271068476,-7547.79,0.00042739,120]
[355555923,1741271068519,-6952.99,0.00042739,120]
[355555924,1741271068565,-8928.86,0.00042739,120]
[355555925,1741271068608,-500.0,0.00042739,120]
[355555926,1741271068646,-11217.98,0.00042739,120]
[355555927,1741271068686,-12650.34,0.00042739,120]
[355555928,1741271068726,-671.11,0.00042739,120]
[355555929,1741271068764,-1347.04,0.00042739,120]
[355555930,1741271068801,-743.57,0.00042739,120]
[355555931,1741271068840,-14660.74,0.00042739,120]
[355555932,1741271068877,-743.24,0.00042739,120]
[355555933,1741271068914,-1243.9,0.00042739,120]
[355555934,1741271068953,-1229.39,0.00042739,120]
[355555935,1741271068990,-930.18,0.00042739,120]
[355555936,1741271069031,-4141.21,0.00042739,120]
[355555938,1741271069072,-4912.79,0.00042739,120]
[355555939,1741271069111,-1927.41,0.00042739,120]
[355555940,1741271069151,-1019.55,0.00042739,120]
[355555941,1741271069192,-562.37,0.00042739,120]
[355555942,1741271069232,-588.98,0.00042739,120]
[355555943,1741271069272,-1728.34,0.00042739,120]
[355555944,1741271069310,-989.07,0.00042739,120]
[355555945,1741271069350,-773.49,0.00042739,120]
[355555946,1741271069389,-780.02,0.00042739,120]
[355555947,1741271069426,-1721.71,0.00042739,120]
[355555948,1741271069463,-1621.8,0.00042739,120]
[355555949,1741271069502,-3792.33,0.00042739,120]
[355555950,1741271069543,-1769.32,0.00042739,120]
[355555951,1741271069582,-500.0,0.00042739,120]
[355555952,1741271069625,-539.76,0.00042739,120]
[355555953,1741271069673,-6300.9,0.00042739,120]
[355555954,1741271069716,-1291.62,0.00042739,120]
[355555955,1741271069767,-629.53,0.00042739,120]
[355555956,1741271069808,-1376.17,0.00042739,120]
[355555957,1741271069851,-500.0,0.00042739,120]
[355555958,1741271069894,-2291.69,0.00042739,120]
[355555959,1741271069934,-500.0,0.00042739,30]
[355555960,1741271069976,-13081.35,0.00042739,120]
[355555961,1741271070016,-956.01,0.00042739,120]
[355555962,1741271070059,-1308.06,0.00042739,120]
[355555963,1741271070102,-673.65,0.00042739,120]
[355555964,1741271070145,-1988.24,0.00042739,120]
[355555965,1741271070185,-7915.38,0.00042739,120]
[355555966,1741271070229,-4641.08,0.00042739,120]
[355555967,1741271070269,-500.0,0.00042739,120]
[355555968,1741271070309,-1415.17,0.00042739,120]
[355555969,1741271070486,-520.03,0.00042739,120]
[355555970,1741271070537,-534.2,0.00042739,120]
[355555971,1741271070578,-676.27,0.00042739,120]
[355555972,1741271070617,-500.0,0.00042739,120]
[355555973,1741271070655,-2241.31,0.00042739,120]
[355555974,1741271070691,-3026.45,0.00042739,120]
[355555975,1741271070728,-965.35,0.00042739,120]
[355555976,1741271070763,-2375.11,0.00042739,120]
[355555977,1741271070798,-500.0,0.00042739,120]
[355555978,1741271070834,-2052.47,0.00042739,120]
[355555979,1741271070868,-610.1,0.00042739,120]
[355555980,1741271070902,-2164.86,0.00042739,120]
[355555981,1741271070937,-3883.6,0.00042739,120]
[355555982,1741271070975,-971.78,0.00042739,120]
[355555983,1741271071013,-1730.51,0.00042739,120]
[355555984,1741271071048,-544.43,0.00042739,120]
[355555985,1741271071084,-6002.47,0.00042739,120]
[355555986,1741271071120,-3005.74,0.00042739,120]
[355555987,1741271071157,-565.16,0.00042739,120]
[355555988,1741271071192,-1270.54,0.00042739,120]
[355555989,1741271071229,-4089.33,0.00042739,120]
[355555990,1741271071265,-1167.51,0.00042739,120]
[355555991,1741271071304,-16645.64,0.00042739,120]
[355555992,1741271071342,-2489.8,0.00042739,120]
[355555993,1741271071379,-4966.92,0.00042739,120]
[355555994,1741271071418,-1075.99,0.00042739,120]
[355555995,1741271071456,-2879.45,0.00042739,120]
[355555996,1741271071493,-500.0,0.00042739,120]
[355555997,1741271071531,-1911.45,0.00042739,120]
[355555998,1741271071574,-500.0,0.00042739,120]
[355555999,1741271071614,-1700.74,0.00042739,120]
[355556000,1741271071657,-2577.76,0.00042739,120]
[355556001,1741271071694,-1125.31,0.00042739,120]
[355556002,1741271071739,-422.18,0.000429,33]
[355556003,1741271071781,-422.18,0.000429,33]
[355556004,1741271071824,-422.18,0.000429,33]
[355556005,1741271071866,-422.18,0.000429,33]
[355556006,1741271071907,-422.18,0.000429,33]
[355556007,1741271071949,-422.18,0.000429,33]
[355556008,1741271071991,-422.18,0.000429,33]
[355556009,1741271072034,-422.18,0.000429,33]
[355556010,1741271072075,-422.18,0.000429,33]
[355556011,1741271072116,-422.18,0.000429,33]
[355556012,1741271072156,-422.18,0.000429,33]
[355556013,1741271072197,-422.18,0.000429,33]
[355556014,1741271072236,-249.52,0.00042969,30]
[355556015,1741271072275,-20000.0,0.00043,30]
[355556016,1741271072313,-4155.98747191,0.00043,30]
[355556017,1741271072351,-561.03,0.00043013,120]
[355556018,1741271072388,-687.89,0.00043013,120]
[355556019,1741271072432,-1099.59,0.00043013,120]
[355556020,1741271072470,-752.11,0.00043013,120]
[355556021,1741271072509,-1468.62,0.00043013,120]
[355556022,1741271072545,-756.76,0.00043013,120]
[355556023,1741271072584,-1110.36,0.00043013,120]
[355556024,1741271072622,-891.47,0.00043013,120]
[355556025,1741271072661,-884.06,0.00043013,120]
[355556026,1741271072701,-230.31268083,0.00043013,120]
[355556027,1741271072736,-1074.64,0.00043013,120]
[355556028,1741271072771,-500.0,0.00043013,120]
[355556029,1741271072805,-950.1,0.00043013,120]
[355556030,1741271072839,-181.01504779,0.00043013,120]
[355556031,1741271072876,-1225.2,0.00043013,120]
[355556032,1741271072916,-2162.05,0.00043013,120]
[355556033,1741271072954,-1648.67,0.00043013,120]
[355556034,1741271072991,-500.0,0.00043013,120]
[355556035,1741271073031,-610.21,0.00043013,120]
[355556036,1741271073075,-1829.08,0.00043013,120]
[355556037,1741271073112,-1064.07,0.00043013,120]
[355556038,1741271073151,-2114.99,0.00043013,120]
[355556039,1741271073192,-911.44,0.00043013,120]
[355556040,1741271073229,-531.27,0.00043013,120]
[355556041,1741271073271,-636.67,0.00043013,120]
[355556042,1741271073311,-500.0,0.00043013,120]
[355556043,1741271073354,-584.29,0.00043013,120]
[355556044,1741271073395,-500.0,0.00043013,120]
[355556045,1741271073435,-647.06,0.00043013,120]
[355556046,1741271073481,-938.8,0.00043013,120]
[355556047,1741271073520,-636.14,0.00043013,120]
[355556048,1741271073570,-988.71,0.00043013,120]
[355556049,1741271073613,-962.89,0.00043013,120]
[355556050,1741271073655,-1193.91,0.00043013,120]
[355556051,1741271073694,-1080.04,0.00043013,120]
[355556052,1741271073734,-500.0,0.00043013,120]
[355556053,1741271073774,-548.17,0.00043013,120]
[355556054,1741271073813,-1071.92,0.00043013,120]
[355556055,1741271073853,-515.91,0.00043013,120]
[355556056,1741271073891,-500.0,0.00043013,120]
[355556057,1741271073931,-1187.86,0.00043013,120]
[355556058,1741271073972,-1547.49,0.00043013,120]
[355556059,1741271074015,-752.94,0.00043013,120]
[355556060,1741271074055,-1999.21,0.00043013,120]
[355556061,1741271074094,-508.31,0.00043013,120]
[355556062,1741271074133,-968.14,0.00043013,120]
[355556063,1741271074174,-500.0,0.00043013,120]
[355556064,1741271074215,-648.77,0.00043013,120]
[355556065,1741271074257,-954.53,0.00043013,120]
[355556066,1741271074299,-500.0,0.00043013,120]
[355556067,1741271074339,-676.1,0.00043013,120]
[355556068,1741271074380,-1140.67,0.00043013,120]
[355556069,1741271074420,-1000.0,0.00043013,30]
[355556070,1741271074461,-1042.73,0.00043013,120]
[355556071,1741271074505,-500.0,0.00043013,120]
[355556072,1741271074545,-612.71,0.00043013,120]
[355556073,1741271074737,-760.52,0.00043013,120]
[355556074,1741271074776,-742.11,0.00043013,120]
[355556075,1741271074816,-500.0,0.00043013,120]
[355556076,1741271074855,-1001.19,0.00043013,120]
[355556077,1741271074896,-4531.68,0.00043013,120]
[355556078,1741271074934,-741.51,0.00043013,120]